fUSD/lending_fUSD_20240104
["ID","MTS","AMOUNT","RATE_DAILY","PERIOD"]
[310226669,1704403862312,-500.0,0.00034246,2]
[310226670,1704403862322,-500.0,0.00034246,2]
[310226671,1704403862331,-500.0,0.00034246,2]
[310226672,1704403862341,-500.0,0.00034246,2]
[310226673,1704403862350,-500.0,0.00034246,2]
[310226674,1704403862359,-500.0,0.00034246,2]
[310226675,1704403862369,-500.0,0.00034246,2]
[310226676,1704403862379,-500.0,0.00034246,2]
[310226677,1704403862389,-500.0,0.00034246,2]
[310226678,1704403862398,-500.0,0.00034246,2]
[310226679,1704403862407,-500.0,0.00034246,2]
[310226680,1704403862417,-500.0,0.00034246,2]
[310226681,1704403862426,-500.0,0.00034246,2]
[310226682,1704403862435,-500.0,0.00034246,2]
[310226683,1704403862445,-500.0,0.00034246,2]
[310226684,1704403862457,-524.24,0.00034246,2]
[310226685,1704403862466,-500.0,0.00034246,2]
[310226686,1704403862475,-500.0,0.00034246,2]
[310226687,1704403862485,-248.71944577,0.00034246,2]
[310226688,1704403862494,-500.0,0.00034246,2]
[310226689,1704403862504,-500.0,0.00034246,2]
[310226690,1704403862513,-521.99,0.00034246,2]
[310226691,1704403862523,-500.0,0.00034246,2]
[310226692,1704403862535,-150.0,0.00034246,2]
[310226693,1704403862545,-500.0,0.00034246,2]
[310226694,1704403862555,-500.0,0.00034246,2]
[310226695,1704403862565,-500.0,0.00034246,2]
[310226696,1704403862575,-500.0,0.00034246,2]
[310226697,1704403862585,-500.0,0.00034246,2]
[310226698,1704403862594,-500.0,0.00034246,2]
[310226699,1704403862604,-500.0,0.00034246,2]
[310226700,1704403862613,-506.68,0.00034246,2]
[310226701,1704403862623,-500.0,0.00034246,2]
[310226702,1704403862633,-500.0,0.00034246,2]
[310226703,1704403862643,-500.0,0.00034246,2]
[310226704,1704403862653,-500.0,0.00034246,2]
[310226705,1704403862662,-500.0,0.00034246,2]
[310226706,1704403862672,-500.0,0.00034246,2]
[310226707,1704403862681,-434.85,0.00034246,2]
[310226708,1704403862691,-500.0,0.00034246,2]
[310226709,1704403862701,-563.94399984,0.00034246,2]
[310226710,1704403862710,-500.0,0.00034246,2]
[310226711,1704403862720,-500.0,0.00034246,2]
[310226712,1704403862729,-500.0,0.00034246,2]
[310226713,1704403862739,-500.0,0.00034246,2]
[310226714,1704403862749,-500.0,0.00034246,2]
[310226715,1704403862759,-500.0,0.00034246,2]
[310226716,1704403862769,-3350.37,0.00034246,2]
[310226717,1704403862779,-210.93,0.00034246,2]
[310226718,1704403862789,-500.0,0.00034246,2]
[310226719,1704403862799,-500.0,0.00034246,2]
[310226720,1704403862810,-896.02,0.00034246,2]
[310226721,1704403862820,-500.0,0.00034246,2]
[310226722,1704403862830,-500.0,0.00034246,2]
[310226723,1704403862840,-500.0,0.00034246,2]
[310226724,1704403862850,-179.89119056,0.00034246,2]
[310226725,1704403862860,-648.69,0.00034246,2]
[310226726,1704403862870,-2514.46,0.00034246,2]
[310226727,1704403862880,-500.0,0.00034246,2]
[310226728,1704403862890,-500.0,0.00034246,2]
[310226729,1704403862900,-500.0,0.00034246,2]
[310226730,1704403862911,-500.0,0.00034246,2]
[310226731,1704403862922,-1011.28,0.00034246,2]
[310226732,1704403862933,-500.0,0.00034246,2]
[310226733,1704403862943,-500.0,0.00034246,2]
[310226734,1704403862953,-509.23,0.00034246,2]
[310226735,1704403862963,-500.0,0.00034246,2]
[310226736,1704403862973,-500.0,0.00034246,2]
[310226737,1704403862983,-2059.9,0.00034246,2]
[310226738,1704403862993,-500.0,0.00034246,2]
[310226739,1704403863002,-500.0,0.00034246,2]
[310226740,1704403863011,-500.0,0.00034246,2]
[310226741,1704403863022,-500.0,0.00034246,2]
[310226742,1704403863031,-651.77,0.00034246,2]
[310226743,1704403863041,-500.0,0.00034246,2]
[310226744,1704403863051,-626.07,0.00034246,2]
[310226745,1704403863062,-500.0,0.00034246,2]
[310226746,1704403863071,-500.0,0.00034246,2]
[310226747,1704403863082,-500.0,0.00034246,2]
[310226748,1704403863091,-529.91,0.00034246,2]
[310226749,1704403863100,-2064.33,0.00034246,2]
[310226750,1704403863110,-407.06799784,0.00034246,2]
[310226751,1704403863119,-500.0,0.00034246,2]
[310226752,1704403863129,-509.68,0.00034246,2]
[310226753,1704403863138,-1343.6,0.00034246,2]
[310226754,1704403863149,-500.0,0.00034246,2]
[310226755,1704403863160,-711.75,0.00034246,2]
[310226756,1704403863170,-500.0,0.00034246,2]
[310226757,1704403863180,-500.0,0.00034246,2]
[310226758,1704403863190,-522.78,0.00034246,2]
[310226759,1704403863202,-1000.94,0.00034246,2]
[310226760,1704403863212,-1077.26,0.00034246,2]
[310226761,1704403863223,-500.0,0.00034246,2]
[310226762,1704403863234,-500.0,0.00034246,2]
[310226763,1704403863246,-982.47,0.00034246,2]
[310226764,1704403863257,-500.0,0.00034246,2]
[310226765,1704403863269,-5148.24,0.00034246,2]
[310226766,1704403863279,-500.0,0.00034246,2]
[310226767,1704403863289,-500.0,0.00034246,2]
[310226768,1704403863299,-615.48,0.00034246,2]
[310226769,1704403863309,-500.0,0.00034246,2]
[310226770,1704403863319,-500.0,0.00034246,2]
[310226771,1704403863328,-625.78,0.00034246,2]
[310226772,1704403863339,-500.0,0.00034246,2]
[310226773,1704403863351,-1193.24,0.00034246,2]
[310226774,1704403863363,-500.0,0.00034246,2]
[310226775,1704403863376,-584.8,0.00034246,2]
[310226776,1704403863388,-535.63913899,0.00034246,2]
[310226777,1704403863398,-679.5,0.00034246,2]
[310226778,1704403863409,-500.0,0.00034246,2]
[310226779,1704403863418,-813.68,0.00034246,2]
[310226780,1704403863428,-608.75,0.00034246,2]
[310226781,1704403863438,-941.49,0.00034246,2]
[310226782,1704403863447,-701.18,0.00034246,2]
[310226783,1704403863458,-500.0,0.00034246,2]
[310226784,1704403863468,-500.0,0.00034246,2]
[310226785,1704403863477,-500.0,0.00034246,2]
[310226786,1704403863487,-500.0,0.00034246,2]
[310226787,1704403863498,-984.08,0.00034246,2]
[310226788,1704403863509,-2418.73,0.00034246,2]
[310226789,1704403863519,-500.0,0.00034246,2]
[310226790,1704403863585,-859.09,0.00034246,2]
[310226791,1704403863595,-721.44,0.00034246,2]
[310226792,1704403863604,-500.0,0.00034246,2]
[310226793,1704403863614,-2840.83,0.00034246,2]
[310226794,1704403863623,-500.0,0.00034246,2]
[310226795,1704403863633,-837.99,0.00034246,2]
[310226796,1704403863643,-861.66,0.00034246,2]
[310226797,1704403863653,-500.0,0.00034246,2]
[310226798,1704403863663,-500.0,0.00034246,2]
[310226799,1704403863673,-721.44,0.00034246,2]
[310226800,1704403863683,-528.09,0.00034246,2]
[310226801,1704403863693,-500.0,0.00034246,2]
[310226802,1704403863704,-853.51,0.00034246,2]
[310226803,1704403863713,-500.0,0.00034246,2]
[310226804,1704403863723,-500.0,0.00034246,2]
[310226805,1704403863733,-500.0,0.00034246,2]
[310226806,1704403863742,-769.96,0.00034246,2]
[310226807,1704403863752,-500.0,0.00034246,2]
[310226808,1704403863761,-500.0,0.00034246,2]
[310226809,1704403863772,-500.0,0.00034246,2]
[310226810,1704403863782,-500.0,0.00034246,2]
[310226811,1704403863792,-500.0,0.00034246,2]
[310226812,1704403863802,-500.0,0.00034246,2]
[310226813,1704403863811,-500.0,0.00034246,2]
[310226814,1704403863820,-669.16,0.00034246,2]
[310226815,1704403863829,-500.0,0.00034246,2]
[310226816,1704403863838,-1213.39,0.00034246,2]
[310226817,1704403863848,-500.0,0.00034246,2]
[310226818,1704403863857,-1401.12,0.00034246,2]
[310226819,1704403863867,-645.52,0.00034246,2]
[310226820,1704403863877,-500.0,0.00034246,2]
[310226821,1704403863886,-279.45,0.00034246,2]
[310226822,1704403863896,-2121.42,0.00034246,2]
[310226823,1704403863906,-500.0,0.00034246,2]
[310226824,1704403863916,-500.0,0.00034246,2]
[310226825,1704403863925,-667.97,0.00034246,2]
[310226826,1704403863935,-500.0,0.00034246,2]
[310226827,1704403863944,-810.45,0.00034246,2]
[310226828,1704403863955,-500.0,0.00034246,2]
[310226829,1704403863964,-150.0,0.00034324,2]
[310226830,1704403863975,-176.29,0.00034349,2]
[310226831,1704403863985,-500.0,0.00034419,2]
[310226832,1704403863996,-788.9943,0.0003442,2]
[310226833,1704403864007,-710.36,0.0003452,2]
[310226834,1704403864017,-500.0,0.0003452,2]
[310226835,1704403864026,-500.0,0.0003452,2]
[310226836,1704403864038,-500.0,0.0003452,2]
[310226837,1704403864048,-459.49030209,0.0003452,2]
[310226838,1704403864057,-707.71,0.0003452,2]
[310226839,1704403864066,-500.0,0.0003452,2]
[310226840,1704403864076,-500.0,0.0003452,2]
[310226841,1704403864086,-500.0,0.0003452,2]
[310226842,1704403864096,-401.63342166,0.0003452,2]
[310226843,1704403864108,-500.0,0.0003452,2]
[310226844,1704403864118,-500.0,0.0003452,2]
[310226845,1704403864127,-500.0,0.0003452,2]
[310226846,1704403864136,-500.0,0.0003452,2]
[310226847,1704403864148,-500.0,0.0003452,2]
[310226848,1704403864158,-500.0,0.0003452,2]
[310226849,1704403864167,-500.0,0.0003452,2]
[310226850,1704403864177,-500.0,0.0003452,2]
[310226851,1704403864187,-500.0,0.0003452,2]
[310226852,1704403864197,-500.0,0.0003452,2]
[310226853,1704403864207,-500.0,0.0003452,2]
[310226854,1704403864216,-500.0,0.0003452,2]
[310226855,1704403864226,-500.0,0.0003452,2]
[310226856,1704403864235,-500.0,0.0003452,2]
[310226857,1704403864244,-500.0,0.0003452,2]
[310226858,1704403864253,-500.0,0.0003452,2]
[310226859,1704403864262,-417.73434654,0.0003452,2]
[310226860,1704403864270,-500.0,0.0003452,2]
[310226861,1704403864279,-500.0,0.0003452,2]
[310226862,1704403864288,-403.10527654,0.0003452,2]
[310226863,1704403864297,-500.0,0.0003452,2]
[310226864,1704403864306,-500.0,0.0003452,2]
[310226865,1704403864315,-500.0,0.0003452,2]
[310226866,1704403864324,-500.0,0.0003452,2]
[310226867,1704403864334,-500.0,0.0003452,2]
[310226868,1704403864343,-500.0,0.0003452,2]
[310226869,1704403864352,-500.0,0.0003452,2]
[310226870,1704403864361,-500.0,0.0003452,2]
[310226871,1704403864370,-500.0,0.0003452,2]
[310226872,1704403864379,-500.0,0.0003452,2]
[310226873,1704403864388,-500.0,0.0003452,2]
[310226874,1704403864398,-500.0,0.0003452,2]
[310226875,1704403864407,-500.0,0.0003452,2]
[310226876,1704403864416,-500.0,0.0003452,2]
[310226877,1704403864425,-500.0,0.0003452,2]
[310226878,1704403864434,-500.0,0.0003452,2]
[310226879,1704403864443,-500.0,0.0003452,2]
[310226880,1704403864452,-314.7,0.0003452,2]
[310226881,1704403864461,-500.0,0.0003452,2]
[310226882,1704403864469,-500.0,0.0003452,2]
[310226883,1704403864478,-524.24,0.0003452,2]
[310226884,1704403864488,-500.0,0.0003452,2]
[310226885,1704403864497,-500.0,0.0003452,2]
[310226886,1704403864506,-500.0,0.0003452,2]
[310226887,1704403864516,-500.0,0.0003452,2]
[310226888,1704403864525,-521.99,0.0003452,2]
[310226889,1704403864534,-246.0752421,0.0003452,2]
[310226890,1704403864543,-150.0,0.0003452,2]
[310226891,1704403864553,-500.0,0.0003452,2]
[310226892,1704403864562,-500.0,0.0003452,2]
[310226893,1704403864571,-500.0,0.0003452,2]
[310226894,1704403864580,-500.0,0.0003452,2]
[310226895,1704403864590,-395.04,0.0003452,2]
[310226896,1704403864600,-500.0,0.0003452,2]
[310226897,1704403864609,-500.0,0.0003452,2]
[310226898,1704403864618,-500.0,0.0003452,2]
[310226899,1704403864627,-580.23055544,0.0003452,2]
[310226900,1704403864635,-510.76707043,0.0003452,2]
[310226901,1704403864644,-500.0,0.0003452,2]
[310226902,1704403864654,-500.0,0.0003452,2]
[310226903,1704403864664,-500.0,0.0003452,2]
[310226904,1704403864675,-500.0,0.0003452,2]
[310226905,1704403864684,-500.0,0.0003452,2]
[310226906,1704403864693,-500.0,0.0003452,2]
[310226907,1704403864703,-500.0,0.0003452,2]
[310226908,1704403864712,-500.0,0.0003452,2]
[310226909,1704403864722,-500.0,0.0003452,2]
[310226910,1704403864732,-3350.37,0.0003452,2]
[310226911,1704403864740,-500.0,0.0003452,2]
[310226912,1704403864749,-500.0,0.0003452,2]
[310226913,1704403864759,-896.02,0.0003452,2]
[310226914,1704403864768,-500.0,0.0003452,2]
[310226915,1704403864778,-500.0,0.0003452,2]
[310226916,1704403864787,-500.0,0.0003452,2]
[310226917,1704403864796,-648.69,0.0003452,2]
[310226918,1704403864805,-2514.46,0.0003452,2]
[310226919,1704403864814,-500.0,0.0003452,2]
[310226920,1704403864824,-500.0,0.0003452,2]
[310226921,1704403864834,-500.0,0.0003452,2]
[310226922,1704403864843,-234.74847414,0.0003452,2]
[310226923,1704403864854,-1011.28,0.0003452,2]
[310226924,1704403864864,-500.0,0.0003452,2]
[310226925,1704403864873,-500.0,0.0003452,2]
[310226926,1704403864883,-509.23,0.0003452,2]
[310226927,1704403864893,-500.0,0.0003452,2]
[310226928,1704403864902,-525.12,0.0003452,2]
[310226929,1704403864913,-2059.9,0.0003452,2]
[310226930,1704403864922,-500.0,0.0003452,2]
[310226931,1704403864932,-500.0,0.0003452,2]
[310226932,1704403864941,-500.0,0.0003452,2]
[310226933,1704403864950,-500.0,0.0003452,2]
[310226934,1704403864960,-651.77,0.0003452,2]
[310226935,1704403864970,-500.0,0.0003452,2]
[310226936,1704403864980,-626.07,0.0003452,2]
[310226937,1704403864990,-500.0,0.0003452,2]
[310226938,1704403864999,-500.0,0.0003452,2]
[310226939,1704403865009,-500.0,0.0003452,2]
[310226940,1704403865018,-529.91,0.0003452,2]
[310226941,1704403865027,-2064.33,0.0003452,2]
[310226942,1704403865037,-500.0,0.0003452,2]
[310226943,1704403865046,-509.68,0.0003452,2]
[310226944,1704403865056,-1343.6,0.0003452,2]
[310226945,1704403865066,-500.0,0.0003452,2]
[310226946,1704403865075,-711.75,0.0003452,2]
[310226947,1704403865085,-500.0,0.0003452,2]
[310226948,1704403865094,-500.0,0.0003452,2]
[310226949,1704403865104,-522.78,0.0003452,2]
[310226950,1704403865113,-1000.94,0.0003452,2]
[310226951,1704403865123,-1077.26,0.0003452,2]
[310226952,1704403865132,-500.0,0.0003452,2]
[310226953,1704403865142,-500.0,0.0003452,2]
[310226954,1704403865152,-982.47,0.0003452,2]
[310226955,1704403865161,-500.0,0.0003452,2]
[310226956,1704403865171,-5148.24,0.0003452,2]
[310226957,1704403865182,-500.0,0.0003452,2]
[310226958,1704403865192,-500.0,0.0003452,2]
[310226959,1704403865203,-615.48,0.0003452,2]
[310226960,1704403865213,-500.0,0.0003452,2]
[310226961,1704403865225,-500.0,0.0003452,2]
[310226962,1704403865235,-625.78,0.0003452,2]
[310226963,1704403865245,-500.0,0.0003452,2]
[310226964,1704403865255,-1193.24,0.0003452,2]
[310226965,1704403865265,-500.0,0.0003452,2]
[310226966,1704403865274,-584.8,0.0003452,2]
[310226967,1704403865284,-679.5,0.0003452,2]
[310226968,1704403865294,-500.0,0.0003452,2]
[310226969,1704403865303,-813.68,0.0003452,2]
[310226970,1704403865313,-608.75,0.0003452,2]
[310226971,1704403865323,-941.49,0.0003452,2]
[310226972,1704403865332,-701.18,0.0003452,2]
[310226973,1704403865342,-500.0,0.0003452,2]
[310226974,1704403865352,-500.0,0.0003452,2]
[310226975,1704403865362,-500.0,0.0003452,2]
[310226976,1704403865372,-500.0,0.0003452,2]
[310226977,1704403865383,-984.08,0.0003452,2]
[310226978,1704403865392,-2418.73,0.0003452,2]
[310226979,1704403865402,-500.0,0.0003452,2]
[310226980,1704403865413,-859.09,0.0003452,2]
[310226981,1704403865422,-721.44,0.0003452,2]
[310226982,1704403865430,-500.0,0.0003452,2]
[310226983,1704403865439,-2840.83,0.0003452,2]
[310226984,1704403865449,-500.0,0.0003452,2]
[310226985,1704403865460,-837.99,0.0003452,2]
[310226986,1704403865471,-861.66,0.0003452,2]
[310226987,1704403865481,-500.0,0.0003452,2]
[310226988,1704403865490,-593.78000354,0.0003452,2]
[310226989,1704403865501,-721.44,0.0003452,2]
[310226990,1704403865511,-528.09,0.0003452,2]
[310226991,1704403865521,-424.32,0.0003452,2]
[310226992,1704403865531,-853.51,0.0003452,2]
[310226993,1704403865540,-500.0,0.0003452,2]
[310226994,1704403865550,-500.0,0.0003452,2]
[310226995,1704403865560,-500.0,0.0003452,2]
[310226996,1704403865569,-769.96,0.0003452,2]
[310226997,1704403865579,-500.0,0.0003452,2]
[310226998,1704403865589,-500.0,0.0003452,2]
[310226999,1704403865599,-500.0,0.0003452,2]
[310227000,1704403865609,-500.0,0.0003452,2]
[310227001,1704403865618,-500.0,0.0003452,2]
[310227002,1704403865629,-500.0,0.0003452,2]
[310227003,1704403865638,-500.0,0.0003452,2]
[310227004,1704403865648,-669.16,0.0003452,2]
[310227005,1704403865658,-500.0,0.0003452,2]
[310227006,1704403865668,-1213.39,0.0003452,2]
[310227007,1704403865678,-500.0,0.0003452,2]
[310227008,1704403865689,-1401.12,0.0003452,2]
[310227009,1704403865699,-645.52,0.0003452,2]
[310227010,1704403865709,-500.0,0.0003452,2]
[310227011,1704403865718,-2121.42,0.0003452,2]
[310227012,1704403865729,-500.0,0.0003452,2]
[310227013,1704403865739,-500.0,0.0003452,2]
[310227014,1704403865749,-667.97,0.0003452,2]
[310227015,1704403865759,-500.0,0.0003452,2]
[310227016,1704403865769,-810.45,0.0003452,2]
[310227017,1704403865778,-500.0,0.0003452,2]
[310227018,1704403865788,-2042.56,0.00034521,2]
[310227019,1704403865797,-150.0,0.00034529,2]
[310227020,1704403865807,-1534.2792282,0.0003459,7]
[310227021,1704403865817,-150.0,0.00034615,2]
[310227022,1704403865826,-156.25,0.00034617,2]
[310227023,1704403865836,-180.0,0.00034658,2]
[310227024,1704403865846,-500.0,0.00034693,2]
[310227025,1704403865855,-245000.0,0.00034694,2]
[310227026,1704403865865,-5000.0,0.00034694,2]
[310227027,1704403865874,-1000.0,0.00034694,2]
[310227028,1704403865884,-153.84,0.00034715,2]
[310227029,1704403865893,-150.0,0.00034717,2]
[310227030,1704403865902,-533.4,0.00034792,2]
[310227031,1704403865912,-500.0,0.00034794,2]
[310227032,1704403865921,-346.11,0.00034794,2]
[310227033,1704403865930,-500.0,0.00034794,2]
[310227034,1704403865941,-707.71,0.00034794,2]
[310227035,1704403865950,-500.0,0.00034794,2]
[310227036,1704403865960,-500.0,0.00034794,2]
[310227037,1704403865969,-500.0,0.00034794,2]
[310227038,1704403865979,-500.0,0.00034794,2]
[310227039,1704403865988,-500.0,0.00034794,2]
[310227040,1704403865997,-500.0,0.00034794,2]
[310227041,1704403866010,-500.0,0.00034794,2]
[310227042,1704403866020,-500.0,0.00034794,2]
[310227043,1704403866029,-500.0,0.00034794,2]
[310227044,1704403866038,-500.0,0.00034794,2]
[310227045,1704403866049,-500.0,0.00034794,2]
[310227046,1704403866059,-482.61,0.00034794,2]
[310227047,1704403866068,-500.0,0.00034794,2]
[310227048,1704403866077,-500.0,0.00034794,2]
[310227049,1704403866089,-500.0,0.00034794,2]
[310227050,1704403866099,-500.0,0.00034794,2]
[310227051,1704403866108,-458.72237646,0.00034794,2]
[310227052,1704403866117,-500.0,0.00034794,2]
[310227053,1704403866127,-212.41,0.00034794,2]
[310227054,1704403866136,-500.0,0.00034794,2]
[310227055,1704403866145,-500.0,0.00034794,2]
[310227056,1704403866154,-181.66342485,0.00034794,2]
[310227057,1704403866164,-500.0,0.00034794,2]
[310227058,1704403866174,-500.0,0.00034794,2]
[310227059,1704403866183,-500.0,0.00034794,2]
[310227060,1704403866193,-500.0,0.00034794,2]
[310227061,1704403866203,-500.0,0.00034794,2]
[310227062,1704403866212,-500.0,0.00034794,2]
[310227063,1704403866222,-500.0,0.00034794,2]
[310227064,1704403866231,-500.0,0.00034794,2]
[310227065,1704403866241,-500.0,0.00034794,2]
[310227066,1704403866250,-500.0,0.00034794,2]
[310227067,1704403866260,-500.0,0.00034794,2]
[310227068,1704403866269,-500.0,0.00034794,2]
[310227069,1704403866279,-500.0,0.00034794,2]
[310227070,1704403866288,-500.0,0.00034794,2]
[310227071,1704403866298,-500.0,0.00034794,2]
[310227072,1704403866307,-500.0,0.00034794,2]
[310227073,1704403866317,-544.85542686,0.00034794,2]
[310227074,1704403866327,-500.0,0.00034794,2]
[310227075,1704403866337,-524.24,0.00034794,2]
[310227076,1704403866346,-500.0,0.00034794,2]
[310227077,1704403866356,-500.0,0.00034794,2]
[310227078,1704403866365,-500.0,0.00034794,2]
[310227079,1704403866375,-521.99,0.00034794,2]
[310227080,1704403866384,-150.0,0.00034794,2]
[310227081,1704403866394,-500.0,0.00034794,2]
[310227082,1704403866404,-500.0,0.00034794,2]
[310227083,1704403866415,-497.21098134,0.00034794,2]
[310227084,1704403866424,-500.0,0.00034794,2]
[310227085,1704403866434,-500.0,0.00034794,2]
[310227086,1704403866443,-500.0,0.00034794,2]
[310227087,1704403866453,-500.0,0.00034794,2]
[310227088,1704403866463,-500.0,0.00034794,2]
[310227089,1704403866473,-500.0,0.00034794,2]
[310227090,1704403866483,-500.0,0.00034794,2]
[310227091,1704403866493,-500.0,0.00034794,2]
[310227092,1704403866503,-500.0,0.00034794,2]
[310227093,1704403866512,-500.0,0.00034794,2]
[310227094,1704403866522,-500.0,0.00034794,2]
[310227095,1704403866532,-500.0,0.00034794,2]
[310227096,1704403866543,-3350.37,0.00034794,2]
[310227097,1704403866553,-500.0,0.00034794,2]
[310227098,1704403866562,-500.0,0.00034794,2]
[310227099,1704403866573,-896.02,0.00034794,2]
[310227100,1704403866582,-414.08,0.00034794,2]
[310227101,1704403866592,-512.5563887,0.00034794,2]
[310227102,1704403866602,-500.0,0.00034794,2]
[310227103,1704403866611,-648.69,0.00034794,2]
[310227104,1704403866621,-2514.46,0.00034794,2]
[310227105,1704403866631,-500.0,0.00034794,2]
[310227106,1704403866641,-500.0,0.00034794,2]
[310227107,1704403866651,-500.0,0.00034794,2]
[310227108,1704403866661,-1011.28,0.00034794,2]
[310227109,1704403866671,-500.0,0.00034794,2]
[310227110,1704403866681,-500.0,0.00034794,2]
[310227111,1704403866690,-509.23,0.00034794,2]
[310227112,1704403866701,-500.0,0.00034794,2]
[310227113,1704403866711,-2059.9,0.00034794,2]
[310227114,1704403866721,-500.0,0.00034794,2]
[310227115,1704403866731,-500.0,0.00034794,2]
[310227116,1704403866741,-500.0,0.00034794,2]
[310227117,1704403866751,-500.0,0.00034794,2]
[310227118,1704403866761,-651.77,0.00034794,2]
[310227119,1704403866771,-500.0,0.00034794,2]
[310227120,1704403866781,-626.07,0.00034794,2]
[310227121,1704403866792,-268.48,0.00034794,2]
[310227122,1704403866802,-500.0,0.00034794,2]
[310227123,1704403866812,-500.0,0.00034794,2]
[310227124,1704403866822,-529.91,0.00034794,2]
[310227125,1704403866831,-2064.33,0.00034794,2]
[310227126,1704403866841,-500.0,0.00034794,2]
[310227127,1704403866851,-509.68,0.00034794,2]
[310227128,1704403866861,-1343.6,0.00034794,2]
[310227129,1704403866870,-500.0,0.00034794,2]
[310227130,1704403866881,-711.75,0.00034794,2]
[310227131,1704403866891,-500.0,0.00034794,2]
[310227132,1704403866900,-500.0,0.00034794,2]
[310227133,1704403866910,-522.78,0.00034794,2]
[310227134,1704403866920,-1000.94,0.00034794,2]
[310227135,1704403866930,-1077.26,0.00034794,2]
[310227136,1704403866940,-500.0,0.00034794,2]
[310227137,1704403866950,-500.0,0.00034794,2]
[310227138,1704403866960,-982.47,0.00034794,2]
[310227139,1704403866970,-500.0,0.00034794,2]
[310227140,1704403866980,-5148.24,0.00034794,2]
[310227141,1704403866990,-500.0,0.00034794,2]
[310227142,1704403867001,-500.0,0.00034794,2]
[310227143,1704403867011,-615.48,0.00034794,2]
[310227144,1704403867021,-500.0,0.00034794,2]
[310227145,1704403867031,-500.0,0.00034794,2]
[310227146,1704403867042,-625.78,0.00034794,2]
[310227147,1704403867052,-500.0,0.00034794,2]
[310227148,1704403867062,-1193.24,0.00034794,2]
[310227149,1704403867072,-500.0,0.00034794,2]
[310227150,1704403867082,-584.8,0.00034794,2]
[310227151,1704403867091,-679.5,0.00034794,2]
[310227152,1704403867102,-500.0,0.00034794,2]
[310227153,1704403867111,-813.68,0.00034794,2]
[310227154,1704403867121,-608.75,0.00034794,2]
[310227155,1704403867132,-941.49,0.00034794,2]
[310227156,1704403867142,-701.18,0.00034794,2]
[310227157,1704403867152,-500.0,0.00034794,2]
[310227158,1704403867162,-467.28338489,0.00034794,2]
[310227159,1704403867172,-500.0,0.00034794,2]
[310227160,1704403867182,-556.80976483,0.00034794,2]
[310227161,1704403867192,-984.08,0.00034794,2]
[310227162,1704403867203,-2418.73,0.00034794,2]
[310227163,1704403867213,-500.0,0.00034794,2]
[310227164,1704403867223,-859.09,0.00034794,2]
[310227165,1704403867233,-721.44,0.00034794,2]
[310227166,1704403867242,-500.0,0.00034794,2]
[310227167,1704403867252,-2840.83,0.00034794,2]
[310227168,1704403867262,-299.2,0.00034794,2]